Cogmind - Beta 16 @@@ ROGUE MODE // 2026.01.07 @ 21:22:16 Player: Lunishko Result: Destroyed by G-34 Mercenary with Small Laser Performance ------------- Evolutions (1) 500 Regions Visited (3) 600 Robots Destroyed (31) 155 Value Destroyed (767) 767 Prototype IDs (2) 40 Alien Tech Used (0) 0 Bonus (0) 0 TOTAL SCORE: 2062 Bonus ------- None Cogmind --------- Core Integrity 0/400 Matter 300/300 Energy 98/100 System Corruption 0% Temperature Cool (6) Movement Walking (105) Location -9/Materials Parts ------- > --- POWER (1) -------- (None) > --- PROPULSION (2) --- Aluminum Leg > --- UTILITY (4) ------ Medium Storage Unit Weight Redist. System Signal Interpreter ECM Suite > --- WEAPON (2) ------- (None) > --- INVENTORY (10) --- Ion Engine Light Treads Aluminum Leg Signal Interpreter Peak State ------------ > --- POWER ------------ Ion Engine > --- PROPULSION ------- Aluminum Leg Aluminum Leg > --- UTILITY ---------- Medium Storage Unit Visual Processing Unit Sensor Array Signal Interpreter > --- WEAPON ----------- Small Laser Light Assault Rifle > --- INVENTORY -------- Ion Engine Light Treads Signal Interpreter ECM Suite [Rating: 10] Favorites ----------- Power Ion Engine Engine Ion Engine Propulsion Aluminum Leg Treads Light Treads Leg Aluminum Leg Utility Medium Storage Unit Device ECM Suite Storage Medium Storage Unit Processor Signal Interpreter Weapon Light Assault Rifle Energy Gun Small Laser Ballistic Gun Light Assault Rifle Launcher Grenade Launcher Special Weapon Mining Laser Build | -11 -10 -10 -9 ------- Run | Yrd Mat Min Mat Slots Evolved 2 | . . . 2 Power . | . . . . Propulsion . | . . . . Utility 2 | . . . 2 Weapon . | . . . . Parts Attached 24 | 2 10 2 10 Power 3 | . 2 . 1 Engine 3 | . 2 . 1 Core . | . . . . Reactor . | . . . . Propulsion 7 | 2 . 2 3 Treads 2 | 2 . . . Leg 5 | . . 2 3 Wheel . | . . . . Hover . | . . . . Flight . | . . . . Utility 7 | . 3 . 4 Device 3 | . . . 3 Storage 2 | . 2 . . Processor 2 | . 1 . 1 Hackware . | . . . . Protection . | . . . . Artifact . | . . . . Weapon 7 | . 5 . 2 Energy Gun 3 | . 2 . 1 Energy Cannon . | . . . . Ballistic Gun 2 | . 1 . 1 Ballistic Cannon . | . . . . Launcher 1 | . 1 . . Special Weapon 1 | . 1 . . Impact Weapon . | . . . . Slashing Weapon . | . . . . Piercing Weapon . | . . . . Special Melee Weapon . | . . . . Unidentified Prototypes . | . . . . Parts Lost 17 | . 4 2 11 Power 3 | . 1 . 2 Propulsion 6 | . . 2 4 Utility 1 | . . . 1 Weapon 7 | . 3 . 4 Highest Loss Streak 4 | . 2 2 4 To Critical Strikes . | . . . . Average Backups 3 | 2 3 6 3 Power . | . . . 1 Propulsion 1 | . . 1 1 Utility 1 | . 1 4 1 Weapon . | 1 . . . Tool/Special . | . . . . Unused Backups 4 | . . . 4 Power 1 | . . . 1 Propulsion 2 | . . . 2 Utility 1 | . . . 1 Weapon . | . . . . Tool/Special . | . . . . Average Slot Usage (%) 92 | . 95 96 88 Engine 11 | . 13 14 9 Treads 12 | . 28 12 . Leg 11 | . . 12 19 Device 9 | . . . 18 Storage 12 | . 13 14 11 Processor 11 | . 12 14 11 Energy Gun 9 | . 8 14 9 Ballistic Gun 9 | . 9 14 9 Launcher 1 | . 4 . . Special Weapon 1 | . 4 . . Peak Build Rating 10 | 2 8 8 10 Average Rating 7 | 1 7 7 8 On Entrance 4 | . 2 8 8 Avg Prop Armor Cover (%) . | . . . . Naked Turns . | . . . . Heaviest Build 22 | . 17 17 22 Greatest Support 40 | 40 40 40 26 Greatest Overweight (x) 5 | . . 5 4 Average Overweight (x) . | . . . . Largest Inventory Capacity 10 | 5 10 10 10 Average Capacity 9 | 5 8 10 10 Most Carried 8 | 4 5 8 7 Average Carried 3 | 2 3 6 3 Final Capacity 10 | 5 10 10 10 Final Carried 6 | 4 5 6 4 Class Distribution -------------------- 52% | Mutant 47% | Scavenger-Mutant Dominant Class ---------------- Mutant | -10/Materials Scavenger-Mutant | -10/Mines Scavenger-Mutant | -9/Materials Resources | -11 -10 -10 -9 ----------- Run | Yrd Mat Min Mat Matter Collected 609 | 187 179 141 102 Remotely . | . . . . Salvage Created 729 | . 254 137 338 Parts 50 | . 22 5 23 Haulers Intercepted . | . . . . Recyclers Shooed . | . . . . Parts Field Recycled . | . . . . Retrieved Matter . | . . . . Parts Self-Destructed . | . . . . Prevented . | . . . . Parts Restored . | . . . . Kills | -11 -10 -10 -9 ------- Run | Yrd Mat Min Mat Combat Hostiles Destroyed 23 | . 9 5 9 Melee 1 | . . . 1 Guns 16 | . 3 5 8 AOE 6 | . 6 . . Classes Destroyed 8 | . 6 . 2 Worker 1 | . 1 . . Builder 1 | . 1 . . Tunneler 1 | . . . 1 Operator 2 | . 2 . . Watcher 3 | . 3 . . Swarmer 9 | . 3 3 3 Grunt 12 | . 6 2 4 Sentry 2 | . . . 2 Best Kill Streak 9 | . 9 2 3 Combat Bots Only 3 | . 3 2 3 Max Kills in Single Turn 3 | . 3 1 1 Gunslinging . | . . . . Exploded 2 | . 2 . . Melee 1 | . . . 1 Uniques/NPCs Destroyed . | . . . . Combat | -11 -10 -10 -9 -------- Run | Yrd Mat Min Mat Hostile Shots Fired 220 | . 45 28 147 Missed 54 | . 11 7 36 Hits 166 | . 34 21 111 Projectile 166 | . 34 21 111 Critical Strikes 3 | . 1 . 2 Damage Taken 1931 | . 504 204 1223 Core 532 | . 107 18 407 Absorbed by Shields . | . . . . Core Remaining (%) 75 | 100 . 50 . Volleys Fired 102 | . 36 13 53 Largest 2 | . 2 2 2 Hottest 120 | . 120 60 63 Shots Fired 139 | . 44 26 69 Gun 119 | . 24 26 69 Cannon . | . . . . Launcher 16 | . 16 . . Special 4 | . 4 . . Kinetic 46 | . 11 13 22 Thermal 70 | . 10 13 47 Explosive 16 | . 16 . . Electromagnetic 7 | . 7 . . Robot Hit Streak 18 | . 6 18 9 Robot Miss Streak 9 | . 3 9 2 Penetration Max . | . . . . Secondary Targets . | . . . . Shots Hit Robots 89 | . 21 16 52 Core Hits 71 | . 30 13 28 Critical Kills . | . . . . Critical Parts Destroyed 1 | . . . 1 Critical Strikes 1 | . . . 1 Destroy 1 | . . . 1 Melee Attacks . | . . . . Impact . | . . . . Slashing . | . . . . Piercing . | . . . . Sneak Attacks . | . . . . Combat Hostiles . | . . . . Follow-up Attacks . | . . . . Damage Inflicted 1743 | . 923 166 654 Guns 932 | . 176 152 604 Cannons . | . . . . Explosions 742 | . 742 . . Melee . | . . . . Ramming 69 | . 5 14 50 Kinetic 378 | . 73 64 241 Thermal 547 | . 96 88 363 Explosive 698 | . 698 . . Electromagnetic 51 | . 51 . . Impact . | . . . . Slashing . | . . . . Piercing . | . . . . Highest Corruption 1 | . 1 1 . Average Corruption 1 | . 1 1 . Corruption Purged . | . . . . Corruption Blocked . | . . . . Effects 3 | . 2 1 . Energy Discharges 1 | . . 1 . Data Loss (major) 2 | . 2 . . Overload Shots . | . . . . Overflow Damage 20 | . 20 . . Projectiles . | . . . . Explosions 20 | . 20 . . Melee . | . . . . Knockbacks 1 | . 1 . . Impact 1 | . 1 . . Kinetic . | . . . . Secondary . | . . . . Self-Inflicted Damage 89 | . 85 . 4 Shots 3 | . 3 . . Rammed 23 | . 1 9 13 Targets Rammed 44 | . 1 9 34 Kicked 21 | . . . 21 Crushed . | . . . . Highest Temperature 107 | . 107 56 28 Average Temperature 22 | . 29 27 8 Received Heat Transfer 780 | . 225 36 519 Siege Activations . | . . . . Martial Activations . | . . . . Shielding Activations . | . . . . Robots Disrupted . | . . . . Combat Hostiles . | . . . . Robots Corrupted . | . . . . Combat Hostiles . | . . . . Parts Fried . | . . . . Impact Corruptions . | . . . . Robots Melted . | . . . . Combat Hostiles . | . . . . Parts Melted 9 | . 2 . 7 Heat Transferred 1300 | . 275 200 825 Parts Sabotaged . | . . . . Parts Stolen . | . . . . Parts Stripped . | . . . . Power Chain Reactions 1 | . 1 . . Alert | -11 -10 -10 -9 ------- Run | Yrd Mat Min Mat Maximum Alert Level 1 | . 1 . . Low Security (%) 97 | 100 94 100 100 Level 1 2 | . 5 . . Level 2 . | . . . . Level 3 . | . . . . Level 4 . | . . . . Level 5 . | . . . . High Security . | . . . . Max Security . | . . . . Peak Influence 216 | . 216 89 128 Initial 19 | . . 19 3 Average 58 | . 128 46 13 Influence Increases 851 | . 415 120 316 Destroy 0b10 Robot/C 460 | . 180 100 180 Destroy 0b10 Robot/NC 40 | . 35 . 5 Destroy Leader 96 | . 36 20 40 Successful Hack 16 | . . . 16 Disable Machine 90 | . 90 . . Destroy Structure 74 | . 74 . . Partial Spotted 15 | . . . 15 Lose Combat Pursuer 60 | . . . 60 Influence Decreases 755 | . 363 163 229 Entered New Map 39 | . . 33 6 Time Decay 568 | . 323 110 135 Lost Part 148 | . 40 20 88 Squads Dispatched 5 | . 3 . 2 Investigation 1 | . 1 . . Extermination . | . . . . Reinforcement 4 | . 2 . 2 Assault . | . . . . Garrison . | . . . . Intercept . | . . . . Searches Triggered . | . . . . Construction Impeded . | . . . . Haulers Reinforced . | . . . . Active Scanning Responses . | . . . . Cargo Convoy Interrupts . | . . . . Stealth | -11 -10 -10 -9 --------- Run | Yrd Mat Min Mat Distress Signals 2 | . 1 . 1 Communications Jammed . | . . . . Distress Signals . | . . . . Times Spotted 44 | . 15 4 25 Peak Tracking Total 7 | . 4 3 7 Tactical Retreats 7 | . . . 7 ECM-based Alert Blocks 8 | . . . 8 Traps | -11 -10 -10 -9 ------- Run | Yrd Mat Min Mat Traps Triggered . | . . . . Indirectly . | . . . . Trap Hack Attempts . | . . . . Triggered . | . . . . Disarmed . | . . . . Reprogrammed . | . . . . Reused . | . . . . Traps Extracted . | . . . . Installed . | . . . . Triggered . | . . . . Machines | -11 -10 -10 -9 ---------- Run | Yrd Mat Min Mat Machines Disabled 6 | . 6 . . Max in Single Turn 1 | . 1 . . Machines Repaired . | . . . . Machines Dismantled . | . . . . Machines Sabotaged . | . . . . Overloaded Fab Kills . | . . . . Hacking | -11 -10 -10 -9 --------- Run | Yrd Mat Min Mat Machines Accessed 8 | . 4 . 4 Terminals 7 | . 4 . 3 Fabricators . | . . . . Repair Stations . | . . . . Recycling Units . | . . . . Scanalyzers 1 | . . . 1 Garrison Access . | . . . . Total Hacks 28 | . 13 . 15 Successful 13 | . 4 . 9 Failed 15 | . 9 . 6 Catastrophic . | . . . . Database Lockouts . | . . . . Manual 3 | . . . 3 Terminals 24 | . 13 . 11 Fabricators . | . . . . Repair Stations . | . . . . Recycling Units . | . . . . Scanalyzers 4 | . . . 4 Garrison Access . | . . . . Terminal Hacks 9 | . 4 . 5 Record 1 | . 1 . . Prototype ID Bank 1 | . 1 . . Emergency Access Points 1 | . . . 1 Scanalyzer Index 1 | . . . 1 Alert Level 2 | . 1 . 1 Security Status 1 | . . . 1 Zone Layout 2 | . 1 . 1 Fabricator Hacks . | . . . . Repair Station Hacks . | . . . . Recycling Unit Hacks . | . . . . Scanalyzer 4 | . . . 4 Retrieve Study 4 | . . . 4 Garrison Access Hacks . | . . . . Unauthorized Hacks . | . . . . Terminals . | . . . . Fabricators . | . . . . Repair Stations . | . . . . Recycling Units . | . . . . Scanalyzers . | . . . . Garrison Access . | . . . . Data Cores Recovered 1 | . 1 . . Used . | . . . . Hacking Detections 8 | . 4 . 4 Full Trace Events 1 | . 1 . . Feedback Events 1 | . 1 . . Corruption 1 | . 1 . . Feedback Blocked . | . . . . Robot Schematics Acquired . | . . . . Robots Built . | . . . . Authchips . | . . . . Time . | . . . . Total Robot Build Rating . | . . . . Part Schematics Acquired . | . . . . Parts Built . | . . . . Authchips . | . . . . Time . | . . . . Total Part Build Rating . | . . . . Part Studies Acquired 4 | . . . 4 Parts Repaired . | . . . . Time . | . . . . Parts Recycled . | . . . . Recycled Matter . | . . . . Retrieved Matter . | . . . . Retrieved Components . | . . . . Parts Scanalyzed . | . . . . Part Schematics Acquired . | . . . . Parts Damaged . | . . . . Bothacking | -11 -10 -10 -9 ------------ Run | Yrd Mat Min Mat Used RIF Installer . | . . . . Robots Hacked . | . . . . Non-combat . | . . . . Combat . | . . . . Robot Hacks Applied . | . . . . Relay Couplers Released . | . . . . Fabnet Peak Effective % . | . . . . Robots Rewired . | . . . . Allies Hacked . | . . . . Hacks Repelled . | . . . . Allies | -11 -10 -10 -9 -------- Run | Yrd Mat Min Mat Total Allies . | . . . . Largest Group . | . . . . Highest-Rated Group . | . . . . Highest-Rated Ally . | . . . . Total Orders . | . . . . Ally Attacks . | . . . . Total Damage . | . . . . Kills . | . . . . Allies Corrupted . | . . . . Allies Melted . | . . . . Intel | -11 -10 -10 -9 ------- Run | Yrd Mat Min Mat Active Infowar (turns) 1592 | . 683 231 678 Optics 916 | . 683 231 2 Sensors 600 | . . . 600 ECM 675 | . . . 675 Robot Analysis Total . | . . . . Derelict Logs Recovered . | . . . . Drone Launches . | . . . . Drone Recoveries . | . . . . Exploration | -11 -10 -10 -9 ------------- Run | Yrd Mat Min Mat Turns Passed 2156 | 70 789 231 1066 Spaces Moved 978 | 42 421 128 387 Core 20 | 4 . 4 12 Treads 495 | 38 421 36 . Legs 463 | . . 88 375 Wheels . | . . . . Hover . | . . . . Flight . | . . . . Fastest Speed 50 | 50 160 120 105 Average Speed 144 | 149 160 136 128 Slowest Speed 300 | 160 160 300 250 Overloaded Moves . | . . . . Propulsion Burnouts . | . . . . Robots Hopped . | . . . . Potential Cave-ins . | . . . . Cave-ins Triggered . | . . . . Exploration Rate (%) 28 | 3 70 23 18 Regions Visited 3 Branch Regions 1 Pre-discovered Areas . | . . . . Known Exits Taken . | . . . . Unknown Exits Taken 3 | 1 1 1 . Scrap Searched 1 | . . 1 . Spaces Dug 1 | . 1 . . Terrain Destroyed 76 | . 76 . . Melee . | . . . . Projectile 1 | . 1 . . AOE 75 | . 75 . . Terrain Rammed . | . . . . Walls Destroyed . | . . . . Machines Disabled . | . . . . Actions | -11 -10 -10 -9 --------- Run | Yrd Mat Min Mat Total 1544 | 49 486 155 854 Wait 367 | . 6 1 360 Move 975 | 41 420 127 387 Hop . | . . . . Pick Up 28 | 6 11 3 8 Fast Attach . | . . . . Attach 23 | 2 9 2 10 Detach . | . . . . Swap 3 | . 2 . 1 Drop 2 | . 1 . 1 Fire 102 | . 36 13 53 Melee . | . . . . Ram 13 | . . . 13 Kick 21 | . . . 21 Crush 10 | . 1 9 . Escape Stasis . | . . . . Rewire . | . . . . Trap . | . . . . Miscellaneous . | . . . . Route ------- -11/Scrapyard -10/Materials (discovered 3 exits: Mat / [*Min x2]) -10/Mines -9/Materials (discovered 1 exit: [Min]) History --------- Turn | Location | Event 22 | -11/Scrapyard | Discovered new exit (range 16) 71 | -11/Scrapyard | Entered Materials 194 | -10/Materials | Discovered new exit (range 11) 283 | -10/Materials | Discovered new exit (range 12) 312 | -10/Materials | Build established: Mutant 712 | -10/Materials | Discovered new exit (range 7) 860 | -10/Materials | Entered Mines 861 | -10/Mines | Assembled infested the area 919 | -10/Mines | Met a Derelict bent on vengeance 950 | -10/Mines | Discovered new exit (range 9) 1091 | -10/Mines | Entered Materials 1091 | -9/Materials | Evolved 2 slots: Utility x2 1286 | -9/Materials | Build established: Scavenger-Mutant 1583 | -9/Materials | Discovered new exit (range 16) 1760 | -9/Materials | Lost 3 parts (1p1n1w) 1818 | -9/Materials | Core integrity fell below 50% 2122 | -9/Materials | Core integrity fell below 20% 2157 | -9/Materials | Destroyed by G-34 Mercenary with Small Laser Last Messages --------------- 02104_ S-10 Pest destroyed. 02107_ K-01 Serf collects debris. 02116_ Aluminum Leg+ destroyed. 02119_ Destroyed Flight Unit. 02120_ Aluminum Leg+ destroyed. 02121_ Lgt. Ion Engine melted. 02121_ S-10 Pest destroyed. 02125_ K-01 Serf collects debris. 02125_ S-10 Pest destroyed. 02128_ Sml. Laser+ destroyed. 02129_ K-01 Serf cleans the Terminal. 02130_ K-01 Serf collects debris. 02132_ K-01 Serf cleans the Terminal. 02133_ Kicked G-34 Mercenary. 02137_ K-01 Serf cleans the Terminal. 02141_ Ion Engine+ destroyed. 02141_ K-01 Serf cleans the Terminal. 02146_ K-01 Serf collects debris. 02151_ Kicked G-34 Mercenary. 02156_ Kicked G-34 Mercenary out of the way. Map ----- +----------------------------------------------------+ | ?????????????# ### ## #? | | ?????????????# " #?# ###########?? | | ?????????????# "" #?# # !???? | | ?????????? # "" #?# # """ #??? | | ??????????"" # * """ #?# # """"" #??? | | ??????????"" # "" #?# + """"" #??? | | ??????????"" #!! """ #?# # """"" #??? | | ?????????? #!! """ #?### # """ #??? | | ?????????? # """ #???# # #??? | | ?????????? # " #???# # #??? | | ?????????? # #???# # #??? | | ??????????############???# ##+#######??? | | ???########??????????????# #????????? | | ???# #??????????????# ######???? | | ???# "S% ################ ##"T"####? | | ???# """"%/ % #? | | ??# "" ############## #? | | # * #????????????#"" """"""" #? | | / %= #????????????#"T """"""" #? | | #####################"" """"""" #? | | ????# """"""" #? | | ????? """"""" #? | | ?????? % %% #? | | ??????? ] ########/## %% #? | | ?????????? ## [%=###/###### #? | | ?????????? ### % #%@g #?# #? | | ?????????? #?#T % #%""" #?# #? | | ?????????? #?#" g%""" #?###+#### | | ?????????? #?# %#%""" #?# # | | ?????????? ############% % #?# # | | ?????????? ##### #%%% #?# """ # | | ?????????? ########?# """ # | | ?????????? < #????????# """ # | | ??????????"" #????????# !# | | ????????????????????????????????######## | | ???????????????????????????????????????? | | ???????????????????????????????????????? | | ???????????????????????????????????????? | | ???????????????????????????????????????? | | ???????????????????????????????????????? | | ???????????????????????????????????????? | | ???????????????????????????????????????? | | ???????????????????????????????????????? | | ???????????????????????????????????????? | | ???????????????????????????????????????? | | ???????????????????????????????????????? | | ???????????????????????????????????????? | | ???????????????????????????????????????? | | ???????????????????????????????????????? | | ???????????????????????????????????????? | +----------------------------------------------------+ Best States ------------- Heat Dissipation 28 Energy Generation 12 Energy Capacity 250 Matter Stores 300 Matter Capacity 300 Sight Range 18 Robot Scan Range 14 Terrain Scan Density 10 ECM Strength 1 Additional Mass Support 6 Evasion (%) 55 Recoil Reduction 2 Item Schematics ----------------- None Robot Schematics ------------------ None Fabricated ------------ Nothing Repaired ---------- Nothing Studied --------- Aluminum Leg | -9/Materials | Hacked Ion Engine | -9/Materials | Hacked Sml. Laser | -9/Materials | Hacked Lgt. Treads | -9/Materials | Hacked Alien Tech Used ----------------- None Achievements -------------- None Challenges ------------ None Game ------ Seed AssemblyInsulatedSteel Manual? 0 Play Time 00:23:36 Cumulative 11.3 hours Start 2026.01.07 @ 21:00:36 End 2026.01.07 @ 21:22:16 Sessions 1 Manual Loads 0 Difficulty Rogue Special Mode None Game No. 13 Rogue 13 Adventurer 0 Explorer 0 Win Type - Total 0 Types 0/0/0/0/0/0/0/0/0/0 Lore% 16 Gallery% 10 Achievement% 13 Wizard Run 0 Options --------- Layout 1 ASCII 0 Keyboard 0 Movement Mouse Keybinds 0 Fullscreen 1 Font 48/Proggy Map View 50x35 Zoom Use 0% Tactical HUD 1 Map Filters NONE Filters NONE Steam 1 RUN: 3ad2529e-c141-48b2-96ca-7b5bb08d47fa